fUST/lending_fUST_20250203
["ID","MTS","AMOUNT","RATE_DAILY","PERIOD"]
[351345755,1738525841747,-748.14,0.00017397,2]
[351345756,1738525841757,-500.0,0.00017397,2]
[351345757,1738525841773,-306.6617072,0.00017399,2]
[351345758,1738525841782,-151.0,0.000174,2]
[351345759,1738525841793,-8076.53669088,0.00017422,2]
[351345760,1738525841811,-5178.80065952,0.00017422,2]
[351345761,1738525841822,-1000.0,0.00017423,2]
[351345762,1738525841831,-1009.41458053,0.00017423,2]
[351345763,1738525841842,-151.0,0.0001743,3]
[351345764,1738525841852,-293.0,0.0001743,2]
[351345765,1738525841861,-520.56721163,0.00017454,2]
[351345766,1738525841871,-600.0,0.0001746,2]
[351345767,1738525841881,-326.63301,0.00017487,2]
[351345768,1738525841890,-2043.0,0.00017499,2]
[351345769,1738525841900,-537.0,0.00017499,2]
[351345770,1738525841909,-2301.0,0.00017499,2]
[351345771,1738525841919,-396.0,0.00017499,2]
[351345772,1738525841928,-151.0,0.000175,2]
[351345773,1738525841937,-1469.81,0.000175,2]
[351345774,1738525841946,-587.03,0.00017534,2]
[351345775,1738525841956,-500.0,0.00017534,2]
[351345776,1738525841966,-500.0,0.00017534,2]
[351345777,1738525841976,-500.0,0.00017534,2]
[351345778,1738525841986,-500.0,0.00017534,2]
[351345779,1738525841995,-500.0,0.00017534,2]
[351345780,1738525842005,-500.0,0.00017534,2]
[351345781,1738525842023,-646.61524198,0.00017534,2]
[351345782,1738525842033,-1112.2,0.00017534,2]
[351345783,1738525842042,-1646.12,0.00017534,2]
[351345784,1738525842052,-683.84,0.00017534,2]
[351345785,1738525842062,-500.0,0.00017534,2]
[351345786,1738525842073,-15015.26,0.00017534,2]
[351345787,1738525842083,-6175.98,0.00017534,2]
[351345788,1738525842095,-1327.1,0.00017534,2]
[351345789,1738525842106,-725.32,0.00017534,2]
[351345790,1738525842116,-835.35,0.00017534,2]
[351345791,1738525842125,-500.0,0.00017534,2]
[351345792,1738525842135,-504.95929634,0.00017534,2]
[351345813,1738525845137,-715.95,0.00016438,2]
[351345815,1738525845146,-752.44052181,0.00016438,2]
[351345863,1738526087906,1000.0,0.00017,17]
[351345866,1738526107460,1000.0,0.00018,30]
[351345872,1738526377312,281.033681,0.00013973,2]
[351345953,1738527032677,-226.778783,0.00015584,2]
[351345954,1738527032686,-500.0,0.00015753,2]
[351345956,1738527032696,-426.0341109,0.00016338,2]
[351345958,1738527032705,-300.0,0.00016437,2]
[351345959,1738527032714,-500.0,0.00016438,2]
[351345961,1738527032724,-558.25,0.00016438,2]
[351345962,1738527032736,-252.29710618,0.00016438,2]
[351345964,1738527032783,-247.70289382,0.00016438,2]
[351345965,1738527032792,-191.86210618,0.00016438,2]
[351345966,1738527032839,-308.13789382,0.00016438,2]
[351345967,1738527032848,-500.0,0.00016438,2]
[351345968,1738527032857,-156.38049612,0.00016438,2]
[351345969,1738527032868,-343.61950388,0.00016438,2]
[351345970,1738527032878,-500.0,0.00016438,2]
[351345971,1738527032886,-500.0,0.00016438,2]
[351345972,1738527032895,-500.0,0.00016438,2]
[351345974,1738527032904,-500.0,0.00016438,2]
[351345976,1738527032913,-500.0,0.00016438,2]
[351345978,1738527032922,-354.88233004,0.00016438,2]
[351345981,1738527032931,-500.0,0.00016438,2]
[351345984,1738527032939,-500.0,0.00016438,2]
[351345987,1738527032949,-500.0,0.00016438,2]
[351345989,1738527032958,-500.0,0.00016438,2]
[351345991,1738527032967,-500.0,0.00016438,2]
[351345994,1738527032976,-500.0,0.00016438,2]
[351345996,1738527032987,-500.0,0.00016438,2]
[351345998,1738527032996,-500.0,0.00016438,2]
[351346000,1738527033005,-500.0,0.00016438,2]
[351346002,1738527033014,-500.0,0.00016438,2]
[351346004,1738527033024,-506.86884258,0.00016438,2]
[351346006,1738527033034,-500.0,0.00016438,2]
[351346008,1738527033043,-500.0,0.00016438,2]
[351346010,1738527033053,-500.0,0.00016438,2]
[351346012,1738527033063,-500.0,0.00016438,2]
[351346014,1738527033072,-500.0,0.00016438,2]
[351346016,1738527033082,-500.0,0.00016438,2]
[351346018,1738527033091,-500.0,0.00016438,2]
[351346020,1738527033101,-500.0,0.00016438,2]
[351346022,1738527033110,-500.0,0.00016438,2]
[351346024,1738527033120,-502.35809235,0.00016438,2]
[351346026,1738527033129,-500.0,0.00016438,2]
[351346028,1738527033139,-500.0,0.00016438,2]
[351346030,1738527033149,-500.0,0.00016438,2]
[351346032,1738527033158,-200.0,0.00016438,2]
[351346034,1738527033168,-500.0,0.00016438,2]
[351346036,1738527033178,-500.0,0.00016438,2]
[351346038,1738527033188,-500.0,0.00016438,2]
[351346039,1738527033198,-222.23,0.00016438,2]
[351346040,1738527033208,-941.69,0.00016438,2]
[351346041,1738527033218,-93.71641487,0.00016438,2]
[351346042,1738527033239,-309.7139885,0.00016438,2]
[351346085,1738527038587,-166.43959663,0.00016438,2]
[351346087,1738527038598,-500.0,0.00016438,2]
[351346089,1738527038607,-500.0,0.00016438,2]
[351346091,1738527038617,-500.0,0.00016438,2]
[351346093,1738527038626,-360.81806198,0.00016438,2]
[351346105,1738527038740,-446.20833079,0.00016438,2]
[351346107,1738527038752,-1758.41932378,0.00016438,2]
[351346110,1738527038770,-2552.05428345,0.00016438,2]
[351346111,1738527038779,-1419.59,0.00016438,2]
[351346113,1738527038789,-13057.77,0.00016438,2]
[351346115,1738527038799,-500.0,0.00016438,2]
[351346116,1738527038808,-500.0,0.00016438,2]
[351346118,1738527038818,-500.0,0.00016438,2]
[351346120,1738527038828,-657.45,0.00016438,2]
[351346122,1738527038837,-500.0,0.00016438,2]
[351346123,1738527038846,-500.0,0.00016438,2]
[351346124,1738527038856,-500.0,0.00016438,2]
[351346125,1738527038865,-500.0,0.00016438,2]
[351346126,1738527038875,-1051.99,0.00016438,2]
[351346127,1738527038884,-1844.12,0.00016438,2]
[351346128,1738527038893,-661.31,0.00016438,2]
[351346129,1738527038904,-3095.74086306,0.00016438,2]
[351346130,1738527038916,-707.59321876,0.00016438,2]
[351346131,1738527038927,-1876.86591818,0.00016438,2]
[351346132,1738527038937,-500.0,0.00016438,2]
[351346133,1738527038946,-500.0,0.00016438,2]
[351346134,1738527038956,-500.0,0.00016438,2]
[351346135,1738527038966,-500.0,0.00016438,2]
[351346136,1738527038976,-504.62350735,0.00016438,2]
[351346137,1738527038988,-500.0,0.00016438,2]
[351346138,1738527038998,-500.0,0.00016438,2]
[351346139,1738527039008,-500.0,0.00016438,2]
[351346140,1738527039018,-500.0,0.00016438,2]
[351346141,1738527039028,-500.0,0.00016438,2]
[351346142,1738527039038,-500.0,0.00016438,2]
[351346143,1738527039047,-577.19,0.00016438,2]
[351346144,1738527039060,-500.0,0.00016438,2]
[351346145,1738527039070,-500.0,0.00016438,2]
[351346146,1738527039079,-520.06,0.00016438,2]
[351346147,1738527039089,-500.0,0.00016438,2]
[351346148,1738527039098,-500.0,0.00016438,2]
[351346149,1738527039108,-500.0,0.00016438,2]
[351346150,1738527039117,-2763.82,0.00016438,2]
[351346151,1738527039127,-500.0,0.00016438,2]
[351346152,1738527039137,-1353.7,0.00016438,2]
[351346153,1738527039147,-1354.99,0.00016438,2]
[351346154,1738527039158,-2507.1,0.00016438,2]
[351346155,1738527039167,-500.0,0.00016438,2]
[351346156,1738527039176,-500.0,0.00016438,2]
[351346157,1738527039185,-500.0,0.00016438,2]
[351346158,1738527039195,-500.0,0.00016438,2]
[351346159,1738527039205,-1426.32,0.00016438,2]
[351346160,1738527039216,-500.0,0.00016438,2]
[351346161,1738527039226,-500.0,0.00016438,2]
[351346162,1738527039238,-500.0,0.00016438,2]
[351346163,1738527039248,-500.0,0.00016438,2]
[351346164,1738527039258,-206.02018433,0.00016438,2]
[351346165,1738527039267,-391.46612239,0.00016438,2]
[351346166,1738527039277,-500.0,0.00016438,2]
[351346167,1738527039287,-560.96,0.00016438,2]
[351346168,1738527039296,-500.0,0.00016438,2]
[351346169,1738527039306,-500.0,0.00016438,2]
[351346170,1738527039316,-808.85,0.00016438,2]
[351346171,1738527039325,-500.0,0.00016438,2]
[351346172,1738527039335,-500.0,0.00016438,2]
[351346173,1738527039344,-902.45,0.00016438,2]
[351346174,1738527039354,-917.83,0.00016438,2]
[351346175,1738527039364,-151.37450619,0.00016475,2]
[351346176,1738527039374,-426.03411083,0.00016561,2]
[351346177,1738527039384,-184.29773378,0.00016574,2]
[351346178,1738527039393,-500.0,0.00016574,2]
[351346179,1738527039404,-500.0,0.00016574,2]
[351346180,1738527039414,-494.71483933,0.00016574,2]
[351346181,1738527039428,-500.0,0.00016574,2]
[351346182,1738527039438,-152.36687066,0.00016574,2]
[351346183,1738527039448,-500.0,0.00016574,2]
[351346184,1738527039458,-200.0,0.00016574,2]
[351346185,1738527039470,-500.0,0.00016574,2]
[351346186,1738527039479,-500.0,0.00016574,2]
[351346187,1738527039493,-500.0,0.00016574,2]
[351346188,1738527039504,-500.0,0.00016574,2]
[351346189,1738527039514,-558.25,0.00016575,2]
[351346190,1738527039523,-500.0,0.00016575,2]
[351346191,1738527039534,-500.0,0.00016575,2]
[351346192,1738527039544,-420.7490541,0.00016575,2]
[351346193,1738527039554,-537.6,0.00016575,2]
[351346194,1738527039564,-500.0,0.00016575,2]
[351346195,1738527039575,-500.0,0.00016575,2]
[351346196,1738527039585,-500.0,0.00016575,2]
[351346197,1738527039595,-500.0,0.00016575,2]
[351346198,1738527039605,-500.0,0.00016575,2]
[351346199,1738527039615,-500.0,0.00016575,2]
[351346200,1738527039626,-500.0,0.00016575,2]
[351346201,1738527039636,-500.0,0.00016575,2]
[351346202,1738527039646,-500.0,0.00016575,2]
[351346203,1738527039656,-500.0,0.00016575,2]
[351346204,1738527039665,-500.0,0.00016575,2]
[351346205,1738527039675,-500.0,0.00016575,2]
[351346206,1738527039686,-500.0,0.00016575,2]
[351346207,1738527039695,-500.0,0.00016575,2]
[351346208,1738527039706,-500.0,0.00016575,2]
[351346209,1738527039716,-500.0,0.00016575,2]
[351346210,1738527039726,-500.0,0.00016575,2]
[351346211,1738527039740,-500.0,0.00016575,2]
[351346212,1738527039749,-344.59608758,0.00016575,2]
[351346213,1738527039759,-500.0,0.00016575,2]
[351346214,1738527039769,-569.87,0.00016575,2]
[351346215,1738527039778,-500.0,0.00016575,2]
[351346216,1738527039788,-5117.5,0.00016575,2]
[351346217,1738527039798,-1419.59,0.00016575,2]
[351346218,1738527039808,-13057.77,0.00016575,2]
[351346219,1738527039819,-523.13,0.00016575,2]
[351346220,1738527039830,-500.0,0.00016575,2]
[351346221,1738527039840,-500.0,0.00016575,2]
[351346222,1738527039850,-657.45,0.00016575,2]
[351346223,1738527039970,-500.0,0.00016575,2]
[351346224,1738527039980,-500.0,0.00016575,2]
[351346225,1738527039992,-1051.99,0.00016575,2]
[351346226,1738527040001,-1844.12,0.00016575,2]
[351346227,1738527040011,-661.31,0.00016575,2]
[351346228,1738527040021,-500.0,0.00016575,2]
[351346229,1738527040031,-5680.2,0.00016575,2]
[351346230,1738527040041,-404.81,0.00016575,2]
[351346231,1738527040051,-500.0,0.00016575,2]
[351346232,1738527040060,-500.0,0.00016575,2]
[351346233,1738527040070,-589.80349403,0.00016575,2]
[351346234,1738527040079,-500.0,0.00016575,2]
[351346235,1738527040088,-577.19,0.00016575,2]
[351346236,1738527040098,-500.0,0.00016575,2]
[351346237,1738527040107,-520.06,0.00016575,2]
[351346238,1738527040117,-500.0,0.00016575,2]
[351346240,1738527040127,-2763.82,0.00016575,2]
[351346242,1738527040137,-1353.7,0.00016575,2]
[351346244,1738527040146,-1354.99,0.00016575,2]
[351346246,1738527040156,-2507.1,0.00016575,2]
[351346248,1738527040165,-500.0,0.00016575,2]
[351346251,1738527040175,-500.0,0.00016575,2]
[351346254,1738527040185,-500.0,0.00016575,2]
[351346257,1738527040195,-1426.32,0.00016575,2]
[351346260,1738527040205,-500.0,0.00016575,2]
[351346263,1738527040216,-500.0,0.00016575,2]
[351346266,1738527040226,-500.0,0.00016575,2]
[351346268,1738527040238,-500.0,0.00016575,2]
[351346271,1738527040248,-500.0,0.00016575,2]
[351346274,1738527040258,-808.85,0.00016575,2]
[351346277,1738527040268,-500.0,0.00016575,2]
[351346279,1738527040278,-500.0,0.00016575,2]
[351346282,1738527040287,-902.45,0.00016575,2]
[351346284,1738527040296,-917.83,0.00016575,2]
[351346287,1738527040305,-558.25,0.00016712,2]
[351346289,1738527040314,-500.0,0.00016712,2]
[351346291,1738527040323,-500.0,0.00016712,2]
[351346293,1738527040333,-404.7598767,0.00016712,2]
[351346296,1738527040343,-500.0,0.00016712,2]
[351346299,1738527040352,-500.0,0.00016712,2]
[351346300,1738527040363,-500.0,0.00016712,2]
[351346302,1738527040373,-500.0,0.00016712,2]
[351346304,1738527040383,-500.0,0.00016712,2]
[351346306,1738527040392,-205.23107391,0.00016712,2]
[351346308,1738527040403,-500.0,0.00016712,2]
[351346310,1738527040415,-500.0,0.00016712,2]
[351346312,1738527040426,-500.0,0.00016712,2]
[351346314,1738527040436,-569.87,0.00016712,2]
[351346316,1738527040445,-500.0,0.00016712,2]
[351346319,1738527040458,-5117.5,0.00016712,2]
[351346321,1738527040467,-1419.59,0.00016712,2]
[351346323,1738527040478,-13057.77,0.00016712,2]
[351346325,1738527040490,-500.0,0.00016712,2]
[351346327,1738527040500,-603.77,0.00016712,2]
[351346330,1738527040510,-657.45,0.00016712,2]
[351346332,1738527040520,-500.0,0.00016712,2]
[351346334,1738527040530,-500.0,0.00016712,2]
[351346336,1738527040541,-1051.99,0.00016712,2]
[351346338,1738527040551,-1844.12,0.00016712,2]
[351346340,1738527040563,-661.31,0.00016712,2]
[351346342,1738527040574,-500.0,0.00016712,2]
[351346344,1738527040583,-5680.2,0.00016712,2]
[351346346,1738527040594,-500.0,0.00016712,2]
[351346348,1738527040604,-500.0,0.00016712,2]
[351346350,1738527040614,-500.0,0.00016712,2]
[351346353,1738527040624,-577.19,0.00016712,2]
[351346356,1738527040634,-500.0,0.00016712,2]
[351346358,1738527040643,-520.06,0.00016712,2]
[351346360,1738527040653,-226.2,0.00016712,2]
[351346362,1738527040663,-2763.82,0.00016712,2]
[351346365,1738527040672,-1353.7,0.00016712,2]
[351346368,1738527040682,-1354.99,0.00016712,2]
[351346370,1738527040691,-2507.1,0.00016712,2]
[351346372,1738527040702,-500.0,0.00016712,2]
[351346374,1738527040712,-500.0,0.00016712,2]
[351346376,1738527040722,-1426.32,0.00016712,2]
[351346378,1738527040732,-500.0,0.00016712,2]
[351346380,1738527040744,-500.0,0.00016712,2]
[351346383,1738527040754,-500.0,0.00016712,2]
[351346385,1738527040764,-500.0,0.00016712,2]
[351346387,1738527040774,-500.0,0.00016712,2]
[351346390,1738527040784,-808.85,0.00016712,2]
[351346392,1738527040795,-500.0,0.00016712,2]
[351346393,1738527040805,-500.0,0.00016712,2]
[351346394,1738527040815,-902.45,0.00016712,2]
[351346395,1738527040825,-917.83,0.00016712,2]
[351346397,1738527040834,-426.03411083,0.00016784,2]
[351346399,1738527040844,-404.68807437,0.00016848,2]
[351346401,1738527040853,-558.25,0.00016849,2]
[351346402,1738527040863,-560.17758171,0.00016849,2]
[351346405,1738527040873,-500.0,0.00016849,2]
[351346407,1738527040882,-500.0,0.00016849,2]
[351346408,1738527040892,-500.0,0.00016849,2]
[351346410,1738527040902,-500.0,0.00016849,2]
[351346412,1738527040911,-500.0,0.00016849,2]
[351346414,1738527040920,-500.0,0.00016849,2]
[351346416,1738527040930,-500.0,0.00016849,2]
[351346418,1738527040940,-569.87,0.00016849,2]
[351346420,1738527040949,-500.0,0.00016849,2]
[351346422,1738527040959,-5117.5,0.00016849,2]
[351346424,1738527040968,-1419.59,0.00016849,2]
[351346426,1738527040978,-13057.77,0.00016849,2]
[351346428,1738527040988,-500.0,0.00016849,2]
[351346430,1738527040998,-657.45,0.00016849,2]
[351346432,1738527041007,-500.0,0.00016849,2]
[351346434,1738527041017,-500.0,0.00016849,2]
[351346436,1738527041027,-1051.99,0.00016849,2]
[351346438,1738527041040,-1844.12,0.00016849,2]
[351346440,1738527041050,-661.31,0.00016849,2]
[351346442,1738527041060,-500.0,0.00016849,2]
[351346444,1738527041069,-5680.2,0.00016849,2]
[351346446,1738527041079,-500.0,0.00016849,2]
[351346448,1738527041088,-500.0,0.00016849,2]
[351346450,1738527041098,-577.19,0.00016849,2]
[351346452,1738527041107,-580.6,0.00016849,2]
[351346454,1738527041116,-520.06,0.00016849,2]
[351346456,1738527041127,-2763.82,0.00016849,2]
[351346458,1738527041136,-1353.7,0.00016849,2]
[351346460,1738527041146,-1354.99,0.00016849,2]
[351346462,1738527041155,-2507.1,0.00016849,2]
[351346464,1738527041164,-500.0,0.00016849,2]
[351346466,1738527041174,-500.0,0.00016849,2]
[351346468,1738527041184,-1426.32,0.00016849,2]
[351346470,1738527041194,-500.0,0.00016849,2]
[351346472,1738527041203,-500.0,0.00016849,2]
[351346474,1738527041213,-500.0,0.00016849,2]
[351346475,1738527041222,-500.0,0.00016849,2]
[351346477,1738527041232,-500.0,0.00016849,2]
[351346479,1738527041243,-808.85,0.00016849,2]
[351346481,1738527041253,-500.0,0.00016849,2]
[351346483,1738527041263,-902.45,0.00016849,2]
[351346485,1738527041272,-917.83,0.00016849,2]
[351346487,1738527041282,-500.0,0.00016906,2]
[351346488,1738527041291,-558.25,0.00016986,2]
[351346490,1738527041300,-500.0,0.00016986,2]
[351346492,1738527041311,-500.0,0.00016986,2]
[351346494,1738527041320,-500.0,0.00016986,2]
[351346496,1738527041331,-500.0,0.00016986,2]
[351346498,1738527041340,-500.0,0.00016986,2]
[351346500,1738527041350,-500.0,0.00016986,2]
[351346502,1738527041360,-559.02,0.00016986,2]
[351346504,1738527041370,-569.87,0.00016986,2]
[351346506,1738527041379,-500.0,0.00016986,2]
[351346507,1738527041388,-5117.5,0.00016986,2]
[351346509,1738527041398,-1419.59,0.00016986,2]
[351346511,1738527041409,-13057.77,0.00016986,2]
[351346513,1738527041421,-500.0,0.00016986,2]
[351346515,1738527041431,-657.45,0.00016986,2]
[351346518,1738527041441,-500.0,0.00016986,2]
[351346519,1738527041452,-500.0,0.00016986,2]
[351346521,1738527041462,-1051.99,0.00016986,2]
[351346524,1738527041475,-1844.12,0.00016986,2]
[351346525,1738527041484,-661.31,0.00016986,2]
[351346527,1738527041499,-500.0,0.00016986,2]
[351346529,1738527041508,-5680.2,0.00016986,2]
[351346531,1738527041518,-500.0,0.00016986,2]
[351346533,1738527041527,-500.0,0.00016986,2]
[351346535,1738527041538,-577.19,0.00016986,2]
[351346537,1738527041547,-520.06,0.00016986,2]
[351346539,1738527041557,-2763.82,0.00016986,2]
[351346541,1738527041566,-1353.7,0.00016986,2]
[351346543,1738527041577,-1354.99,0.00016986,2]
[351346545,1738527041587,-2507.1,0.00016986,2]
[351346547,1738527041597,-500.0,0.00016986,2]
[351346549,1738527041606,-500.0,0.00016986,2]
[351346551,1738527041616,-1426.32,0.00016986,2]
[351346553,1738527041625,-500.0,0.00016986,2]
[351346555,1738527041635,-500.0,0.00016986,2]
[351346557,1738527041645,-500.0,0.00016986,2]
[351346559,1738527041654,-500.0,0.00016986,2]
[351346561,1738527041664,-500.0,0.00016986,2]
[351346563,1738527041674,-808.85,0.00016986,2]
[351346565,1738527041683,-404.22215627,0.00016986,2]
[351346567,1738527041693,-902.45,0.00016986,2]
[351346569,1738527041702,-917.83,0.00016986,2]
[351346571,1738527041713,-153.0,0.00016999,2]
[351346573,1738527041723,-426.03411083,0.00017007,2]
[351346575,1738527041732,-723.4337517,0.00017041,2]
[351346577,1738527041744,-247.1436295,0.00017041,2]
[351346579,1738527041754,-354.4946044,0.00017041,2]
[351346581,1738527041763,-354.4946044,0.00017041,2]
[351346583,1738527041773,-354.4946044,0.00017041,2]
[351346585,1738527041783,-353.0254188,0.00017041,2]
[351346587,1738527041792,-354.4946044,0.00017041,2]
[351346589,1738527041801,-354.4946044,0.00017041,2]
[351346591,1738527041811,-558.25,0.00017123,2]
[351346593,1738527041821,-500.0,0.00017123,2]
[351346594,1738527041830,-500.0,0.00017123,2]
[351346595,1738527041840,-500.0,0.00017123,2]
[351346596,1738527041849,-500.0,0.00017123,2]
[351346598,1738527041859,-500.0,0.00017123,2]
[351346600,1738527041869,-500.0,0.00017123,2]
[351346602,1738527041878,-569.87,0.00017123,2]
[351346603,1738527041887,-5117.5,0.00017123,2]
[351346605,1738527041897,-1419.59,0.00017123,2]
[351346607,1738527041907,-7962.12912749,0.00017123,2]
[351346622,1738527042041,-1858.33069216,0.00017123,2]
[351346692,1738527044188,-354.4946044,0.00017041,2]
[351346693,1738527044199,-2950.7033585,0.00017123,2]
[351346694,1738527044212,-286.60682185,0.00017123,2]
[351346695,1738527044222,-500.0,0.00017123,2]
[351346697,1738527044233,-657.45,0.00017123,2]
[351346698,1738527044246,-500.0,0.00017123,2]
[351346699,1738527044257,-452.14729427,0.00017123,2]
[351346700,1738527044266,-1051.99,0.00017123,2]
[351346701,1738527044277,-1844.12,0.00017123,2]
[351346702,1738527044287,-661.31,0.00017123,2]
[351346709,1738527044394,-500.0,0.00017123,2]
[351346710,1738527044405,-5680.2,0.00017123,2]
[351346711,1738527044418,-500.0,0.00017123,2]
[351346713,1738527044427,-500.0,0.00017123,2]
[351346715,1738527044437,-577.19,0.00017123,2]
[351346716,1738527044447,-271.70681962,0.00017123,2]
[351346718,1738527044459,-248.35318038,0.00017123,2]
[351346720,1738527044468,-2763.82,0.00017123,2]
[351346721,1738527044478,-1353.7,0.00017123,2]
[351346722,1738527044489,-1354.99,0.00017123,2]
[351346723,1738527044504,-2507.1,0.00017123,2]
[351346724,1738527044514,-500.0,0.00017123,2]
[351346726,1738527044524,-500.0,0.00017123,2]
[351346727,1738527044534,-1426.32,0.00017123,2]
[351346729,1738527044544,-500.0,0.00017123,2]
[351346730,1738527044553,-500.0,0.00017123,2]
[351346731,1738527044563,-500.0,0.00017123,2]
[351346732,1738527044572,-500.0,0.00017123,2]
[351346733,1738527044583,-500.0,0.00017123,2]
[351346734,1738527044593,-808.85,0.00017123,2]
[351346735,1738527044603,-902.45,0.00017123,2]
[351346736,1738527044612,-917.83,0.00017123,2]
[351346737,1738527044621,-995.67538918,0.0001716,2]
[351346738,1738527044631,-385.3137431,0.00017178,2]
[351346739,1738527044641,-191.1480875,0.00017178,2]
[351346740,1738527044651,-435.0102687,0.00017178,2]
[351346741,1738527044661,-306.0,0.00017178,2]
[351346742,1738527044671,-626.544,0.000172,2]
[351346743,1738527044680,-156.277,0.000172,2]
[351346744,1738527044691,-426.03411083,0.00017231,2]
[351346745,1738527044700,-558.25,0.0001726,2]
[351346746,1738527044710,-500.0,0.0001726,2]
[351346747,1738527044720,-500.0,0.0001726,2]
[351346748,1738527044729,-584.96,0.0001726,2]
[351346749,1738527044739,-500.0,0.0001726,2]
[351346750,1738527044751,-500.0,0.0001726,2]
[351346751,1738527044761,-500.0,0.0001726,2]
[351346752,1738527044770,-569.87,0.0001726,2]
[351346753,1738527044780,-5117.5,0.0001726,2]
[351346754,1738527044790,-13057.77,0.0001726,2]
[351346755,1738527044799,-500.0,0.0001726,2]
[351346756,1738527044809,-657.45,0.0001726,2]
[351346757,1738527044818,-500.0,0.0001726,2]
[351346758,1738527044827,-1051.99,0.0001726,2]
[351346759,1738527044837,-1844.12,0.0001726,2]
[351346760,1738527044846,-661.31,0.0001726,2]
[351346761,1738527044855,-500.0,0.0001726,2]
[351346762,1738527044865,-5680.2,0.0001726,2]
[351346763,1738527044875,-500.0,0.0001726,2]
[351346764,1738527044885,-500.0,0.0001726,2]
[351346765,1738527044894,-577.19,0.0001726,2]
[351346766,1738527044903,-520.06,0.0001726,2]
[351346767,1738527044913,-2763.82,0.0001726,2]
[351346768,1738527044922,-1353.7,0.0001726,2]
[351346769,1738527044932,-1354.99,0.0001726,2]
[351346770,1738527044941,-2507.1,0.0001726,2]
[351346771,1738527044951,-500.0,0.0001726,2]
[351346772,1738527044961,-500.0,0.0001726,2]
[351346773,1738527044970,-1426.32,0.0001726,2]
[351346774,1738527044979,-500.0,0.0001726,2]
[351346775,1738527044989,-432.93,0.0001726,2]
[351346776,1738527045002,-500.0,0.0001726,2]
[351346777,1738527045012,-500.0,0.0001726,2]
[351346778,1738527045023,-808.85,0.0001726,2]
[351346779,1738527045032,-902.45,0.0001726,2]
[351346780,1738527045042,-917.83,0.0001726,2]
[351346781,1738527045051,-600.0,0.0001728,2]
[351346782,1738527045061,-151.0,0.000173,2]
[351346783,1738527045071,-156.0,0.00017387,2]
[351346784,1738527045081,-224.07,0.00017387,2]
[351346785,1738527045091,-168.0,0.00017387,2]
[351346786,1738527045100,-168.0,0.00017387,2]
[351346787,1738527045110,-13.59533616,0.00017397,2]
[351346802,1738527046736,-1064.69,0.00016438,2]
[351346803,1738527046748,-1064.69,0.00016575,2]
[351346805,1738527046758,-760.30318587,0.00016712,2]
[351346829,1738527537241,277.154246,0.00013973,2]
[351346836,1738527888293,772.44,0.00010959,2]
[351346882,1738528231881,-1683.23287969,0.00015653,2]
[351346885,1738528231891,-500.0,0.00015753,2]
[351346887,1738528231901,-319.52558314,0.00016338,2]
[351346889,1738528231910,-300.0,0.00016437,2]
[351346891,1738528231919,-500.0,0.00016437,2]
[351346893,1738528231929,-184.29773378,0.00016437,2]